bitfinex-derivatives/quotes_BTCF0:USTF0_20240917
["timestamp","ask_amount","ask_price","bid_price","bid_amount"]
[1726576444759,3.33802582,59315.0,59314.0,15.58759727]
[1726576444957,3.57651269,59315.0,59314.0,15.45036686]
[1726576445269,3.57635146,59315.0,59314.0,15.3325724]
[1726576445455,3.67540967,59315.0,59314.0,10.6709524]
[1726576445651,3.67540967,59315.0,59314.0,10.0800924]
[1726576445854,3.68381907,59315.0,59314.0,9.30985796]
[1726576446070,3.68981907,59315.0,59314.0,8.05473796]
[1726576446370,3.70381907,59315.0,59314.0,7.72015796]
[1726576446665,3.70381907,59315.0,59314.0,7.46686796]
[1726576446867,2.87381907,59315.0,59314.0,7.46686796]
[1726576447056,3.45981907,59315.0,59314.0,7.46586796]
[1726576447251,2.87381907,59315.0,59314.0,7.46686796]
[1726576447455,3.47381907,59315.0,59314.0,7.46686796]
[1726576447662,3.47381907,59315.0,59314.0,7.39505796]
[1726576447851,3.70381907,59315.0,59314.0,7.39505796]
[1726576448461,3.70381907,59315.0,59314.0,7.27272861]
[1726576448654,3.70381907,59315.0,59314.0,6.98493861]
[1726576449257,3.70381907,59315.0,59314.0,6.07493861]
[1726576450275,3.47381907,59315.0,59314.0,6.07493861]
[1726576450464,2.19895907,59315.0,59314.0,6.07493861]
[1726576450659,2.12098465,59315.0,59314.0,5.9376942]
[1726576450859,2.72098465,59315.0,59314.0,5.9376942]
[1726576451261,2.12098465,59315.0,59314.0,5.9376942]
[1726576451465,2.72098465,59315.0,59314.0,5.9376942]
[1726576451666,3.39584465,59315.0,59314.0,5.82156715]
[1726576451864,3.47381907,59315.0,59314.0,5.82156715]
[1726576452261,3.70381907,59315.0,59314.0,4.82088906]
[1726576452571,3.46540967,59315.0,59314.0,4.53757042]
[1726576453074,3.46540967,59315.0,59314.0,4.45797042]
[1726576453262,3.69540967,59315.0,59314.0,4.22695192]
[1726576453455,3.71303296,59315.0,59314.0,4.06387192]
[1726576453656,3.71303296,59315.0,59314.0,4.05887192]
[1726576453856,3.71303296,59315.0,59314.0,3.97030292]
[1726576454067,3.71303296,59315.0,59314.0,3.79450292]
[1726576454274,3.71303296,59315.0,59314.0,3.77370292]
[1726576454477,3.71303296,59315.0,59314.0,2.9695249]
[1726576454478,3.80820752,59315.0,59314.0,2.9695249]
[1726576454664,3.80820752,59315.0,59314.0,2.2533519]
[1726576454971,3.91233965,59315.0,59314.0,1.62407203]
[1726576455168,3.73474747,59315.0,59314.0,0.55707203]
[1726576455566,3.43537334,59315.0,59314.0,0.31270833]
[1726576456559,3.43537334,59315.0,59314.0,0.24402367]
[1726576458165,1.98393705,59315.0,59290.0,0.03233]
[1726576458370,0.23,59291.0,59290.0,0.03233]
[1726576458569,0.23,59291.0,59283.0,0.18906304]
[1726576458570,0.42935447,59291.0,59283.0,0.18906304]
[1726576458770,0.19081451,59290.0,59277.0,0.3608]
[1726576458971,0.19081451,59289.0,59279.0,0.18]
[1726576459177,0.19081451,59288.0,59279.0,0.18]
[1726576459364,0.23,59285.0,59279.0,0.18]
[1726576459675,0.19081451,59284.0,59279.0,0.18]
[1726576459875,0.19081451,59283.0,59279.0,0.18]
[1726576460071,0.04831451,59282.0,59279.0,0.18]
[1726576460267,0.25354815,59282.0,59281.0,0.23]
[1726576460467,0.15968222,59282.0,59280.0,2.5984923]
[1726576460669,0.15968222,59281.0,59280.0,2.5974523]
[1726576460861,0.0008,59290.0,59280.0,2.8274523]
[1726576460862,0.004,59284.0,59280.0,2.8274523]
[1726576461062,0.25354815,59288.0,59283.0,2.4674523]
[1726576461279,0.25219436,59289.0,59287.0,0.3616]
[1726576461476,0.0008,59290.0,59288.0,2.2374523]
[1726576461675,0.0008,59290.0,59289.0,0.0008]
[1726576461875,0.25219436,59289.0,59288.0,2.2375323]
[1726576462175,0.25299436,59290.0,59288.0,2.2366523]
[1726576462366,0.0008,59290.0,59289.0,0.0008]
[1726576462762,0.26048618,59290.0,59289.0,0.0008]
[1726576463775,0.26048618,59290.0,59289.0,0.0018]
[1726576463776,0.26148618,59290.0,59289.0,0.0018]
[1726576464273,0.74604573,59290.0,59289.0,0.00134002]
[1726576465466,0.74824573,59290.0,59289.0,0.002]
[1726576465671,0.74950571,59290.0,59289.0,0.002]
[1726576466284,0.74950571,59290.0,59280.0,0.3549]
[1726576466471,0.23,59281.0,59280.0,0.3549]
[1726576466776,0.23845755,59281.0,59280.0,0.3549]
[1726576467079,0.23845755,59281.0,59280.0,0.3469]
[1726576467080,0.50630426,59281.0,59280.0,0.3469]
[1726576467275,1.09710426,59281.0,59276.0,0.0924]
[1726576467579,0.0004,59277.0,59269.0,0.3528]
[1726576467781,0.2304,59270.0,59269.0,0.3448]
[1726576467975,0.2304,59270.0,59269.0,0.3368]
[1726576468171,0.73788377,59270.0,59269.0,0.3368]
[1726576468370,0.73788377,59270.0,59263.0,0.3608]
[1726576468573,0.5912,59264.0,59256.0,0.3608]
[1726576468880,0.0004,59257.0,59256.0,0.3608]
[1726576469081,0.23,59259.0,59256.0,0.3448]
[1726576469387,0.50602687,59257.0,59256.0,0.3448]
[1726576469582,0.50602687,59258.0,59256.0,0.3448]
[1726576469880,0.23,59259.0,59256.0,0.3448]
[1726576470066,0.23,59259.0,59258.0,0.0004]
[1726576470480,0.73535521,59259.0,59258.0,0.0004]
[1726576471087,0.73535521,59259.0,59256.0,0.3382]
[1726576471382,0.3608,59258.0,59256.0,0.001]
[1726576471680,0.0004,59257.0,59256.0,0.001]
[1726576471880,0.50918916,59257.0,59256.0,0.001]
[1726576472084,0.25486944,59257.0,59252.0,0.0883]
[1726576472267,0.23,59253.0,59252.0,0.0803]
[1726576472473,0.2382903,59253.0,59252.0,0.0803]
[1726576472768,0.26137081,59253.0,59252.0,0.0803]
[1726576473377,0.26237081,59253.0,59252.0,0.0803]
[1726576474983,0.26237081,59253.0,59252.0,0.0813]
[1726576474984,0.26937081,59253.0,59252.0,0.0813]
[1726576475679,0.0166903,59253.0,59252.0,2.3179523]
[1726576476084,0.0166903,59253.0,59252.0,0.0813]
[1726576478777,0.2466903,59253.0,59252.0,0.0813]
[1726576478983,0.74221218,59253.0,59252.0,0.001]
[1726576479386,0.75083883,59253.0,59252.0,0.001]
[1726576479777,0.75083883,59253.0,59248.0,0.1807]
[1726576479778,0.74221218,59253.0,59248.0,0.1737]
[1726576480277,0.75076108,59253.0,59248.0,0.1737]
[1726576480481,0.74221218,59253.0,59248.0,0.1657]
[1726576480776,0.74121218,59253.0,59248.0,0.1657]
[1726576480979,0.74964699,59253.0,59248.0,0.1677]
[1726576481888,0.67964699,59253.0,59248.0,0.1677]
[1726576482277,0.67564699,59253.0,59248.0,0.1677]
[1726576482479,0.26355,59253.0,59249.0,2.2366523]
[1726576482889,0.26336558,59253.0,59249.0,2.2286523]
[1726576484281,0.26336558,59253.0,59249.0,2.2296523]
[1726576484891,0.5208,59250.0,59248.0,0.0874]
[1726576485185,0.5208,59250.0,59234.0,0.16253234]
[1726576485186,0.5208,59250.0,59238.0,2.5794523]
[1726576485377,0.16,59241.0,59239.0,2.2286523]
[1726576486085,0.16,59241.0,59240.0,2.2286523]
[1726576486284,0.16,59245.0,59240.0,2.2286523]
[1726576486481,0.16,59245.0,59244.0,0.0008]
[1726576486786,1.02725536,59245.0,59244.0,0.0008]
[1726576486984,0.66645536,59245.0,59244.0,0.0008]
[1726576487585,1.02765536,59245.0,59244.0,0.0008]
[1726576487788,0.66685536,59245.0,59244.0,0.0048]
[1726576488593,0.66885536,59245.0,59244.0,0.0048]
[1726576489378,1.02965536,59245.0,59244.0,0.0048]
[1726576489692,0.66885536,59245.0,59244.0,0.0048]
[1726576490187,1.02965536,59245.0,59244.0,0.0048]
[1726576490387,1.02965536,59245.0,59240.0,2.2286523]
[1726576490686,1.02965536,59245.0,59240.0,2.2256523]
[1726576490687,0.1604,59241.0,59240.0,2.2256523]
[1726576490898,0.16885104,59241.0,59240.0,2.2206523]
[1726576491189,0.42331981,59241.0,59240.0,2.2206523]
[1726576491377,0.41486877,59241.0,59240.0,2.2206523]
[1726576491689,0.668792,59241.0,59236.0,0.3496]
[1726576491888,0.1604,59237.0,59236.0,0.3496]
[1726576492284,0.6666953,59237.0,59236.0,0.3496]
[1726576492585,0.25222794,59237.0,59236.0,2.5622523]
[1726576493701,0.25922794,59237.0,59236.0,2.5622523]
[1726576493889,0.25922794,59237.0,59236.0,0.3496]
[1726576494394,0.88451611,59237.0,59236.0,0.001]
[1726576494691,0.88451611,59237.0,59233.0,2.2126523]
[1726576494894,0.16,59231.0,59225.0,0.3608]
[1726576495091,0.0082513,59231.0,59229.0,2.2126523]
[1726576495292,0.25419436,59230.0,59229.0,2.2126523]
[1726576495592,0.00861314,59230.0,59229.0,2.2126523]
[1726576495794,0.25419436,59232.0,59229.0,2.2126523]
[1726576496089,0.25261417,59230.0,59229.0,2.2126523]
[1726576496396,0.16,59230.0,59229.0,2.2126523]
[1726576496584,0.41261417,59230.0,59229.0,2.2126523]
[1726576496786,0.16,59230.0,59229.0,2.2126523]
[1726576496986,0.16,59230.0,59229.0,2.2136523]
[1726576497194,0.41307926,59230.0,59229.0,2.2136523]
[1726576497798,0.164,59230.0,59229.0,2.2126523]
[1726576498200,0.16,59230.0,59229.0,2.2126523]
[1726576498398,0.165,59230.0,59229.0,2.2126523]
[1726576499198,0.005,59230.0,59229.0,5.2126523]
[1726576501396,0.0004,59234.0,59229.0,5.2126523]
[1726576501597,0.0004,59234.0,59233.0,2.5738523]
[1726576502095,0.00876374,59234.0,59233.0,5.5738523]
[1726576502292,0.0833,59247.0,59233.0,5.5738523]
[1726576502497,0.00854128,59243.0,59242.0,2.2130523]
[1726576502698,0.32430001,59245.0,59242.0,2.2130523]
[1726576502893,0.3231,59245.0,59244.0,2.2126523]
[1726576503093,0.33155758,59245.0,59244.0,0.0004]
[1726576503299,0.26330656,59245.0,59244.0,0.0004]
[1726576504001,0.51728867,59245.0,59244.0,0.0004]
[1726576504899,0.52928867,59245.0,59244.0,0.0014]
[1726576505898,0.52928867,59245.0,59244.0,2.2140523]
[1726576506804,0.54328867,59245.0,59244.0,2.2140523]
[1726576507604,0.54328867,59245.0,59244.0,2.5748523]
[1726576508207,0.54328867,59245.0,59244.0,5.5748523]
[1726576508805,0.54328867,59245.0,59244.0,5.2140523]
[1726576508994,0.28930656,59245.0,59244.0,5.2140523]
[1726576509196,0.28930656,59245.0,59244.0,5.5748523]
[1726576509801,0.03445758,59245.0,59244.0,5.5748523]
[1726576510106,0.0039,59254.0,59244.0,6.2592513]
[1726576510306,0.0039,59260.0,59253.0,2.5738523]
[1726576510506,0.01107321,59259.0,59258.0,2.5738523]
[1726576510804,0.00245998,59259.0,59258.0,2.5734523]
[1726576511009,0.00245998,59259.0,59258.0,5.5734523]
[1726576511409,0.01689433,59259.0,59258.0,5.5734523]
[1726576511595,0.00845998,59259.0,59258.0,5.5734523]
[1726576512102,0.02699912,59259.0,59258.0,5.60099381]
[1726576512308,0.01845998,59259.0,59258.0,5.5744523]
[1726576512804,0.02704476,59259.0,59258.0,5.5744523]
[1726576515904,0.0039,59267.0,59258.0,5.5744523]
[1726576516105,0.0857,59272.0,59266.0,2.5734523]
[1726576516306,0.00128,59274.0,59271.0,2.5742523]
[1726576516611,0.00826639,59274.0,59273.0,2.2126523]
[1726576516813,0.16,59281.0,59273.0,2.2126523]
[1726576517006,0.0848,59282.0,59273.0,2.2126523]
[1726576517007,0.0848,59282.0,59278.0,0.0008]
[1726576517212,0.52912216,59279.0,59278.0,0.0008]
[1726576517411,1.0363167,59279.0,59278.0,0.0008]
[1726576517612,1.0363167,59279.0,59278.0,0.00062001]
[1726576517916,1.0363167,59279.0,59278.0,2.21327231]
[1726576518111,1.0363167,59279.0,59278.0,0.00062001]
[1726576518416,1.0403167,59279.0,59278.0,0.00162001]
[1726576518914,1.0363167,59279.0,59278.0,0.00062001]
[1726576519217,1.0403167,59279.0,59278.0,0.00262001]
[1726576520213,1.0403167,59279.0,59271.0,0.000538]
[1726576520513,0.16,59272.0,59267.0,0.315806]
[1726576520718,0.16,59268.0,59267.0,0.315806]
[1726576520913,0.16,59268.0,59267.0,0.30784836]
[1726576521108,0.41444011,59268.0,59267.0,0.30784836]
[1726576521309,0.41444011,59268.0,59267.0,2.52050066]
[1726576521610,0.42434452,59268.0,59267.0,2.52050066]
[1726576522007,0.42434452,59268.0,59267.0,2.52150066]
[1726576522516,0.01390441,59268.0,59267.0,5.52250066]
[1726576522713,0.01390441,59268.0,59267.0,5.68250066]
[1726576524018,0.01590441,59268.0,59267.0,5.68250066]
[1726576524816,0.01490441,59268.0,59267.0,5.52150066]
[1726576525629,0.01390441,59268.0,59267.0,5.52150066]
[1726576527822,0.00990441,59268.0,59267.0,5.52150066]
[1726576528023,0.01490441,59268.0,59267.0,5.52150066]
[1726576528733,0.01490441,59268.0,59267.0,5.68150066]
[1726576528734,0.00990441,59268.0,59267.0,5.68150066]
[1726576528916,0.01490441,59268.0,59267.0,5.68150066]
[1726576529224,0.01490441,59268.0,59267.0,6.04230066]
[1726576530224,0.01490441,59268.0,59267.0,5.88230066]
[1726576531330,0.00990441,59268.0,59267.0,5.88230066]
[1726576531632,0.01390441,59268.0,59267.0,5.88230066]
[1726576533429,0.01390441,59268.0,59267.0,6.04230066]
[1726576534034,0.0859,59278.0,59267.0,6.04230066]
[1726576534330,0.19092452,59277.0,59275.0,0.3608]
[1726576534538,0.19092452,59276.0,59275.0,0.3608]
[1726576534726,0.19092452,59276.0,59272.0,3.05568607]
[1726576534925,0.3608,59277.0,59275.0,2.2126523]
[1726576535233,0.19094272,59276.0,59272.0,3.05656607]
[1726576535427,0.19094272,59275.0,59272.0,3.05568607]
[1726576535635,0.19094272,59274.0,59272.0,3.05568607]
[1726576535839,0.19094272,59273.0,59272.0,3.05568607]
[1726576536228,0.19094272,59273.0,59272.0,5.2126523]
[1726576536424,0.19094272,59273.0,59272.0,5.7334523]
[1726576536635,0.08674055,59273.0,59272.0,5.8178133]
[1726576536943,0.00856519,59277.0,59272.0,5.8178133]
[1726576537131,0.001,59277.0,59276.0,2.3726523]
[1726576537338,0.001,59277.0,59276.0,2.3734523]
[1726576537339,0.00947228,59277.0,59276.0,2.3734523]
[1726576537529,0.001,59277.0,59276.0,5.3734523]
[1726576537729,0.0913,59286.0,59276.0,5.3734523]
[1726576538039,0.2557,59291.0,59276.0,5.3734523]
[1726576538040,0.00825942,59283.0,59282.0,2.2134523]
[1726576538341,0.00116,59290.0,59282.0,2.2134523]
[1726576538342,0.00124001,59290.0,59282.0,2.2134523]
[1726576538527,0.36908814,59292.0,59289.0,2.2134523]
[1726576538727,0.36908814,59292.0,59291.0,2.2134523]
[1726576538930,0.36908814,59292.0,59291.0,2.2126523]
[1726576540934,0.36908814,59292.0,59291.0,2.2136523]
[1726576541235,0.37008814,59292.0,59291.0,5.2146523]
[1726576541436,0.53008814,59292.0,59291.0,5.2146523]
[1726576542441,0.37008814,59292.0,59291.0,5.2146523]
[1726576543031,0.00928814,59292.0,59291.0,5.5754523]
[1726576543435,0.00928814,59292.0,59291.0,5.5734523]
[1726576543739,0.00928814,59292.0,59291.0,5.5744523]
[1726576544434,0.001,59292.0,59291.0,5.5744523]
[1726576544636,0.00937801,59292.0,59291.0,5.5744523]
[1726576544840,0.001,59292.0,59291.0,5.2136523]
[1726576545540,0.00935536,59292.0,59291.0,5.2136523]
[1726576545735,0.001,59292.0,59291.0,5.2136523]
[1726576546339,0.00956224,59292.0,59291.0,5.2136523]
[1726576546537,0.001,59292.0,59291.0,5.2136523]
[1726576547138,0.37037069,59292.0,59291.0,5.2136523]
[1726576547342,0.3618,59292.0,59291.0,5.2136523]
[1726576547837,0.37011399,59292.0,59291.0,5.2136523]
[1726576548743,0.00931399,59292.0,59291.0,5.2136523]
[1726576549042,0.37011399,59292.0,59291.0,5.2136523]
[1726576552539,0.42336922,59292.0,59291.0,2.2136523]
[1726576552740,0.78416922,59292.0,59291.0,2.2136523]
[1726576552943,0.37011399,59292.0,59291.0,2.2136523]
[1726576553143,0.37011399,59292.0,59291.0,5.2136523]
[1726576558450,0.53011399,59292.0,59291.0,5.2136523]
[1726576558840,0.61685454,59292.0,59291.0,5.2136523]
[1726576559249,0.53011399,59292.0,59291.0,5.2136523]
[1726576559553,0.72105671,59292.0,59291.0,5.2136523]
[1726576559749,0.56105671,59292.0,59291.0,5.2136523]
[1726576560345,0.20025671,59292.0,59291.0,5.3736523]
[1726576560550,0.09605454,59292.0,59291.0,5.3736523]
[1726576560958,0.16,59313.0,59293.0,0.08433]
[1726576561252,0.16,59313.0,59291.0,1.62776]
[1726576561253,0.00827246,59306.0,59305.0,2.7342523]
[1726576561457,0.08671117,59310.0,59305.0,4.73532708]
[1726576561652,0.0954,59311.0,59310.0,2.2126523]
[1726576561954,0.008313,59311.0,59310.0,2.5734523]
[1726576562155,0.0971,59318.0,59310.0,4.8479523]
[1726576562350,0.0971,59318.0,59317.0,2.2134523]
[1726576562550,0.105527,59318.0,59317.0,2.2134523]
[1726576562756,0.61374397,59318.0,59317.0,2.2134523]
[1726576563959,0.61374397,59318.0,59317.0,0.0008]
[1726576564458,0.61374397,59318.0,59317.0,0.00072001]
[1726576564660,0.61374397,59318.0,59317.0,0.00172001]
[1726576565150,0.61374397,59318.0,59303.0,0.3647]
[1726576565151,0.60531697,59318.0,59303.0,0.35929783]
[1726576565457,0.3608,59312.0,59309.0,2.2126523]
[1726576565648,0.36907499,59312.0,59309.0,2.2126523]
[1726576565852,0.00827499,59312.0,59310.0,2.2126523]
[1726576566152,0.50708991,59311.0,59310.0,2.2126523]
[1726576566352,0.25536235,59311.0,59310.0,2.2126523]
[1726576566558,0.0016,59311.0,59310.0,2.2126523]
[1726576566756,0.0016,59311.0,59310.0,4.4871523]
[1726576567055,0.26432765,59311.0,59310.0,4.4871523]
[1726576567250,0.25588189,59311.0,59310.0,4.4871523]
[1726576567450,0.51845083,59311.0,59310.0,0.001]
[1726576568557,0.50993838,59311.0,59309.0,2.2126523]
[1726576568759,0.2572,59310.0,59309.0,2.2126523]
[1726576569254,0.76230395,59310.0,59309.0,2.2126523]
[1726576569758,0.76230395,59310.0,59309.0,0.001]
[1726576570458,0.76230395,59310.0,59309.0,0.002]
[1726576571058,0.76330395,59310.0,59309.0,0.002]
[1726576571357,0.76430395,59310.0,59309.0,0.002]
[1726576572149,0.76430395,59310.0,59308.0,2.2126523]
[1726576572561,0.76430395,59310.0,59308.0,2.0517523]
[1726576572755,0.76430395,59310.0,59301.0,2.0517523]
[1726576572954,0.16,59302.0,59301.0,1.90655026]
[1726576573152,0.1685386,59302.0,59301.0,1.90655026]
[1726576573351,0.42123658,59302.0,59301.0,1.90655026]
[1726576574160,0.42223658,59302.0,59301.0,1.90655026]
[1726576575256,0.42423658,59302.0,59301.0,1.90755026]
[1726576576267,0.26423658,59302.0,59301.0,1.90755026]
[1726576577063,0.26723658,59302.0,59301.0,1.90855026]
[1726576577264,0.42723658,59302.0,59301.0,1.90855026]
[1726576578262,0.41869798,59302.0,59301.0,1.90855026]
[1726576578458,0.41869798,59302.0,59301.0,1.90160026]
[1726576578962,0.42730674,59302.0,59301.0,1.90160026]
[1726576579265,0.42730674,59302.0,59301.0,1.90156026]
[1726576580859,1.03284943,59302.0,59279.0,0.3608]
[1726576581160,0.3608,59282.0,59281.0,1.73846026]
[1726576581560,0.61414672,59282.0,59281.0,1.73693859]
[1726576582163,0.25334672,59282.0,59281.0,4.53223859]
[1726576582357,0.3608,59293.0,59281.0,5.03598253]
[1726576582556,0.3316049,59302.0,59292.0,1.60048253]
[1726576582762,0.0095049,59302.0,59301.0,1.60048253]
[1726576582951,0.0095049,59302.0,59301.0,1.59968253]
[1726576583261,0.0095049,59302.0,59301.0,3.87418253]
[1726576583464,0.3624,59311.0,59301.0,3.87418253]
[1726576583651,0.0016,59311.0,59310.0,1.60048253]
[1726576584158,0.0016,59311.0,59310.0,3.91498253]
[1726576584358,0.01018765,59311.0,59310.0,3.91498253]
[1726576584661,0.0016,59311.0,59310.0,3.91498253]
[1726576585167,0.01025406,59311.0,59310.0,3.91498253]
[1726576585461,0.0016,59311.0,59310.0,3.91498253]
[1726576585850,0.01001926,59311.0,59310.0,3.91498253]
[1726576586060,0.0016,59311.0,59310.0,3.91498253]
[1726576586258,0.0156,59311.0,59310.0,3.91598253]
[1726576586557,0.03799223,59311.0,59310.0,3.91698253]
[1726576590378,0.22890557,59311.0,59310.0,3.91698253]
[1726576591358,0.1247034,59311.0,59310.0,3.91698253]
[1726576592758,0.1247034,59311.0,59310.0,4.07698253]
[1726576593168,0.1247034,59311.0,59310.0,3.91698253]
[1726576593464,0.1107034,59311.0,59310.0,3.91598253]
[1726576593762,0.22490557,59311.0,59310.0,3.91698253]
[1726576594263,0.21490557,59311.0,59310.0,3.91598253]
[1726576594455,0.22490557,59311.0,59310.0,3.91698253]
[1726576594659,0.22470557,59311.0,59310.0,3.91698253]
[1726576594961,0.22270557,59311.0,59310.0,3.91698253]
[1726576595763,0.38270557,59311.0,59310.0,3.91698253]
[1726576597067,0.2785034,59311.0,59310.0,3.91698253]
[1726576597266,0.19179223,59311.0,59310.0,3.91698253]
[1726576598370,0.19179223,59311.0,59310.0,1.64248253]
[1726576598968,1.05938633,59311.0,59302.0,0.3608]
[1726576599160,0.89938633,59311.0,59306.0,1.59968253]
[1726576599365,0.16,59307.0,59306.0,1.59968253]
[1726576600460,0.1622,59307.0,59306.0,1.59968253]
[1726576600866,0.0022,59307.0,59306.0,1.59968253]
[1726576601862,0.0022,59307.0,59306.0,1.60068253]
[1726576602262,0.0082,59307.0,59306.0,1.60168253]
[1726576602469,0.0192,59307.0,59306.0,1.60168253]
[1726576602972,0.0142,59307.0,59306.0,1.60068253]
[1726576603171,0.0282,59307.0,59306.0,1.60168253]
[1726576603769,0.0292,59307.0,59306.0,1.60168253]
[1726576603970,0.0292,59307.0,59306.0,3.87618253]
[1726576604171,0.1892,59307.0,59306.0,3.87618253]
[1726576604567,0.0292,59307.0,59306.0,3.87618253]
[1726576605071,0.0292,59307.0,59306.0,3.73898264]
[1726576605274,0.11591117,59307.0,59306.0,3.73898264]
[1726576605474,0.22011334,59307.0,59306.0,3.73898264]
[1726576605677,0.21811334,59307.0,59306.0,3.73898264]
[1726576606668,0.21811334,59307.0,59306.0,1.46448264]
[1726576606875,0.11391117,59307.0,59306.0,1.19667881]
[1726576607073,0.11491117,59307.0,59306.0,1.19667881]
[1726576607579,0.0282,59307.0,59306.0,1.19667881]
[1726576609376,0.0282,59307.0,59306.0,3.47117881]
[1726576609570,0.0282,59307.0,59306.0,3.47109881]
[1726576611067,0.0282,59307.0,59306.0,3.63109881]
[1726576611068,0.13240217,59307.0,59306.0,3.63109881]
[1726576612376,0.0282,59307.0,59306.0,3.63109881]
[1726576614082,0.0282,59307.0,59306.0,3.66209397]
[1726576615583,0.0272,59307.0,59306.0,3.66209397]
[1726576623090,0.0272,59307.0,59306.0,4.38369397]
[1726576623491,0.0272,59307.0,59306.0,4.22369397]
[1726576623692,0.0272,59307.0,59306.0,1.19659881]
[1726576624283,0.0355187,59307.0,59306.0,1.19659881]
[1726576624796,0.0355187,59307.0,59306.0,3.47109881]
[1726576625182,0.0355187,59307.0,59306.0,3.33391549]
[1726576625384,0.0355187,59307.0,59306.0,3.36502679]
[1726576625585,0.0355187,59307.0,59306.0,3.72582679]
[1726576627590,0.0355187,59307.0,59306.0,3.69471549]
[1726576629092,0.13972087,59307.0,59306.0,3.69471549]
[1726576629294,0.0355187,59307.0,59306.0,3.69471549]
[1726576633510,0.0355187,59307.0,59306.0,3.33391549]
[1726576633707,0.0355187,59307.0,59306.0,3.69471549]
[1726576634203,0.0355187,59307.0,59306.0,3.33391549]
[1726576634402,0.0355187,59307.0,59306.0,3.69471549]
[1726576635193,0.0355187,59307.0,59306.0,3.85471549]
[1726576636306,0.0078,59325.0,59317.0,1.05451549]
[1726576636608,0.02876898,59334.0,59322.0,1.41611549]
[1726576636807,0.5129,59336.0,59327.0,1.41531549]
[1726576636808,0.7607,59336.0,59327.0,1.41531549]
[1726576637012,0.5057975,59333.0,59327.0,1.27816711]
[1726576637306,0.5057975,59333.0,59327.0,2.49815162]
[1726576637495,0.25180797,59333.0,59332.0,1.05451549]
[1726576637807,0.254157,59335.0,59332.0,1.05451549]
[1726576637999,0.254157,59335.0,59334.0,0.0008]
[1726576638198,0.25139888,59335.0,59334.0,0.0008]
[1726576638400,0.50269397,59335.0,59334.0,0.0008]
[1726576639108,0.51669397,59335.0,59334.0,0.0018]
[1726576639313,0.51669397,59335.0,59334.0,0.0028]
[1726576639610,0.51625397,59335.0,59334.0,0.0028]
[1726576641502,0.26495888,59335.0,59334.0,1.05731549]
[1726576641700,0.00830893,59337.0,59334.0,3.85261549]
[1726576641898,0.00047413,59341.0,59336.0,1.05531549]
[1726576642108,0.00047413,59341.0,59340.0,1.05531549]
[1726576642309,0.16047413,59341.0,59340.0,1.05451549]
[1726576642510,0.16891305,59341.0,59340.0,1.05451549]
[1726576643527,0.16891305,59341.0,59340.0,1.05551549]
[1726576643528,0.00891305,59341.0,59340.0,1.05551549]
[1726576644318,0.00891305,59341.0,59340.0,1.41631549]
[1726576644624,0.00891305,59341.0,59340.0,1.05551549]
[1726576644920,0.00891305,59341.0,59340.0,0.002]
[1726576645229,0.00891305,59341.0,59340.0,3.33101549]
[1726576648826,0.00891305,59341.0,59340.0,3.69181549]
[1726576649123,0.00891305,59341.0,59340.0,3.71955193]
[1726576650122,0.00891305,59341.0,59340.0,3.69181549]
[1726576650430,0.00891305,59341.0,59340.0,3.33101549]
[1726576654426,0.00887305,59341.0,59340.0,3.33101549]
[1726576657330,0.00887305,59341.0,59340.0,1.05651549]
[1726576659835,0.25344675,59341.0,59340.0,1.04853419]
[1726576660035,0.41344675,59341.0,59340.0,1.04053419]
[1726576660238,0.41344675,59341.0,59340.0,0.002]
[1726576660533,0.42173074,59341.0,59340.0,0.002]
[1726576662936,0.26173074,59341.0,59340.0,0.002]
[1726576663142,0.26173074,59341.0,59340.0,3.31503419]
[1726576663440,0.00871812,59341.0,59340.0,3.31503419]
[1726576665228,0.00871812,59341.0,59340.0,3.34269829]
[1726576667739,0.00043413,59341.0,59340.0,3.33407829]
[1726576668037,0.00905987,59341.0,59340.0,3.33407829]
[1726576668343,0.00043413,59341.0,59340.0,3.33407829]
[1726576668543,0.00043413,59341.0,59340.0,3.30641419]
[1726576668741,0.00892992,59341.0,59340.0,3.30641419]
[1726576669337,0.00892992,59341.0,59340.0,3.82001419]
[1726576670947,0.3686,59357.0,59340.0,3.82001419]
[1726576670948,0.16,59356.0,59340.0,3.82001419]
[1726576671142,0.16,59356.0,59349.0,1.03191419]
[1726576671350,0.27412775,59355.0,59350.0,0.0008]
[1726576671641,0.3608,59353.0,59350.0,0.0008]
[1726576671836,0.36924,59353.0,59350.0,0.0008]
[1726576672032,0.50709867,59352.0,59346.0,0.16]
[1726576672229,0.50709867,59352.0,59349.0,1.03191419]
[1726576672431,0.25269767,59352.0,59351.0,1.03191419]
[1726576673233,0.00844,59353.0,59351.0,1.03191419]
[1726576673436,0.4844,59359.0,59352.0,1.19271419]
[1726576673645,0.4844,59359.0,59358.0,0.0008]
[1726576673835,0.52086471,59359.0,59352.0,1.03271419]
[1726576674032,1.02594043,59359.0,59352.0,1.03271419]
[1726576674736,1.02594043,59359.0,59358.0,0.001]
[1726576674942,1.18694043,59359.0,59358.0,0.002]
[1726576675939,1.02694043,59359.0,59358.0,0.002]
[1726576676342,0.9988769,59359.0,59358.0,0.002]
[1726576676647,0.7534769,59359.0,59358.0,1.03291419]
[1726576676844,0.7544769,59359.0,59358.0,1.03291419]
[1726576677341,0.7544769,59359.0,59358.0,1.03391419]
[1726576677546,0.7544769,59359.0,59358.0,1.03291419]
[1726576678041,0.5144769,59359.0,59358.0,1.03291419]
[1726576678243,0.00940118,59359.0,59358.0,1.03291419]
[1726576678440,0.00940118,59359.0,59358.0,1.03391419]
[1726576678640,0.00940118,59359.0,59358.0,3.30841419]
[1726576679042,0.00940118,59359.0,59358.0,3.30741419]
[1726576679347,0.00940118,59359.0,59358.0,1.03391419]
[1726576680048,0.00940118,59359.0,59358.0,3.30841419]
[1726576682340,0.16940118,59359.0,59358.0,1.03391419]
[1726576682640,0.00940118,59359.0,59358.0,1.03391419]
[1726576684244,0.001,59359.0,59358.0,1.03391419]
[1726576684546,0.00903438,59359.0,59358.0,1.03391419]
[1726576684746,0.26176103,59359.0,59358.0,0.002]
[1726576684952,0.42096103,59359.0,59358.0,0.001]
[1726576685151,0.42196103,59359.0,59358.0,0.002]
[1726576685354,0.42196103,59359.0,59352.0,0.0008]
[1726576685355,0.51384123,59359.0,59352.0,0.0008]
[1726576685547,0.16,59353.0,59352.0,1.03271419]
[1726576685850,0.3608,59354.0,59352.0,1.03271419]
[1726576686039,0.3608,59354.0,59353.0,1.03271419]
[1726576686351,0.61208944,59354.0,59353.0,1.03271419]
[1726576686550,0.86551833,59354.0,59353.0,1.03271419]
[1726576686752,0.001,59353.0,59352.0,1.03291419]
[1726576686955,0.26520217,59353.0,59352.0,0.92956278]